[Event "*** Titled Tuesday Blitz"]
[Site "Chess.com"]
[Date "2021.04.27"]
[Round "5"]
[White "kingofthenil"]
[Black "ChristopherYoo"]
[Result "0-1"]
[WhiteElo "2645"]
[BlackElo "2944"]
[TimeControl "180+1"]
[EndTime "10:57:29 PDT"]
[Termination "ChristopherYoo won on time"]

1. e4 {[%clk 0:02:57.8]} 1... c5 {[%clk 0:02:58.8]} 2. d3 {[%clk 0:02:57.8]}
2... d5 {[%clk 0:02:57.1]} 3. exd5 {[%clk 0:02:57.5]} 3... Nf6 {[%clk
0:02:57.2]} 4. c4 {[%clk 0:02:57.2]} 4... e6 {[%clk 0:02:56.8]} 5. dxe6 {[%clk
0:02:58.1]} 5... Bxe6 {[%clk 0:02:55.5]} 6. Nf3 {[%clk 0:02:59]} 6... Nc6 {[%clk
0:02:56]} 7. Be2 {[%clk 0:02:57.4]} 7... Be7 {[%clk 0:02:56.2]} 8. O-O {[%clk
0:02:56.8]} 8... O-O {[%clk 0:02:56.1]} 9. Nc3 {[%clk 0:02:56.1]} 9... Qd7
{[%clk 0:02:49.7]} 10. Bg5 {[%clk 0:02:47]} 10... Rad8 {[%clk 0:02:48]} 11. Re1
{[%clk 0:02:37.4]} 11... h6 {[%clk 0:02:43.2]} 12. Bh4 {[%clk 0:02:36.5]} 12...
Nh5 {[%clk 0:02:27.3]} 13. Bxe7 {[%clk 0:01:44.4]} 13... Qxe7 {[%clk 0:02:26.3]}
14. Qd2 {[%clk 0:01:45]} 14... Bxc4 {[%clk 0:02:15.2]} 15. Bf1 {[%clk
0:01:18.5]} 15... Be6 {[%clk 0:02:05.7]} 16. Rad1 {[%clk 0:01:05]} 16... Nf6
{[%clk 0:02:01]} 17. Qf4 {[%clk 0:00:38.1]} 17... Nd4 {[%clk 0:01:59.7]} 18.
Nxd4 {[%clk 0:00:35.7]} 18... Rxd4 {[%clk 0:01:58.6]} 19. Qe5 {[%clk 0:00:33.8]}
19... Rfd8 {[%clk 0:01:54.7]} 20. h3 {[%clk 0:00:33]} 20... b6 {[%clk 0:01:47]}
21. Re3 {[%clk 0:00:28.4]} 21... Qd6 {[%clk 0:01:33.7]} 22. Qxd6 {[%clk
0:00:23.6]} 22... R4xd6 {[%clk 0:01:34.6]} 23. Rde1 {[%clk 0:00:20.3]} 23... Nd5
{[%clk 0:01:21.9]} 24. Nxd5 {[%clk 0:00:18.3]} 24... Rxd5 {[%clk 0:01:22.8]} 25.
g4 {[%clk 0:00:10.2]} 25... h5 {[%clk 0:01:11.8]} 26. gxh5 {[%clk 0:00:03.5]}
26... Rxh5 {[%clk 0:01:12.7]} 27. a3 {[%clk 0:00:02.9]} 27... Rhd5 {[%clk
0:01:09.9]} 28. Rg3 {[%clk 0:00:03.4]} 28... Kf8 {[%clk 0:01:09]} 29. Ree3
{[%clk 0:00:02.5]} 29... Bf5 {[%clk 0:01:04.1]} 30. Be2 {[%clk 0:00:02.1]} 30...
g6 {[%clk 0:01:01.8]} 31. Kf1 {[%clk 0:00:02.2]} 31... Rd4 {[%clk 0:01:01.4]}
32. Ke1 {[%clk 0:00:02.2]} 32... R8d6 {[%clk 0:00:58.9]} 33. Kd2 {[%clk
0:00:02.5]} 33... c4 {[%clk 0:00:51.6]} 34. Kc3 {[%clk 0:00:03]} 34... cxd3
{[%clk 0:00:47.8]} 35. Bxd3 {[%clk 0:00:03.9]} 35... Rf4 {[%clk 0:00:22.8]} 36.
Bxf5 {[%clk 0:00:03.9]} 36... Rxf5 {[%clk 0:00:19.7]} 37. Ref3 {[%clk
0:00:04.4]} 37... Rc5+ {[%clk 0:00:18.9]} 38. Kb3 {[%clk 0:00:04.4]} 38... Rb5+
{[%clk 0:00:16.4]} 39. Ka2 {[%clk 0:00:03.9]} 39... Rd2 {[%clk 0:00:16]} 40. Rb3
{[%clk 0:00:01.8]} 40... Rxb3 {[%clk 0:00:15.6]} 41. Kxb3 {[%clk 0:00:02.7]}
41... Rxf2 {[%clk 0:00:15.9]} 42. a4 {[%clk 0:00:02.5]} 42... Rf4 {[%clk
0:00:13.9]} 43. Ka3 {[%clk 0:00:02.2]} 43... a5 {[%clk 0:00:13.4]} 44. Rc3
{[%clk 0:00:02.7]} 44... Rb4 {[%clk 0:00:13.2]} 45. b3 {[%clk 0:00:02.4]} 45...
Kg7 {[%clk 0:00:13.4]} 46. Rf3 {[%clk 0:00:02.6]} 46... f5 {[%clk 0:00:13.1]}
47. Kb2 {[%clk 0:00:03.5]} 47... Kf6 {[%clk 0:00:13.2]} 48. Kc3 {[%clk
0:00:04.4]} 48... g5 {[%clk 0:00:12.3]} 49. Rg3 {[%clk 0:00:04.2]} 49... Re4
{[%clk 0:00:12]} 50. Rd3 {[%clk 0:00:04.1]} 50... f4 {[%clk 0:00:11.4]} 51. Rd8
{[%clk 0:00:03.5]} 51... Re3+ {[%clk 0:00:10.5]} 52. Kd4 {[%clk 0:00:01.6]}
52... Rxb3 {[%clk 0:00:10.2]} 53. Rf8+ {[%clk 0:00:01.2]} 53... Kg7 {[%clk
0:00:10.1]} 54. Rf5 {[%clk 0:00:01.6]} 54... Kg6 {[%clk 0:00:08.7]} 55. Rf8
{[%clk 0:00:01.8]} 55... Rxh3 {[%clk 0:00:08.6]} 56. Ke5 {[%clk 0:00:02.7]}
56... Re3+ {[%clk 0:00:08.4]} 57. Kd4 {[%clk 0:00:03.2]} 57... Ra3 {[%clk
0:00:08.1]} 58. Ke5 {[%clk 0:00:03]} 58... Rxa4 {[%clk 0:00:08.2]} 59. Rg8+
{[%clk 0:00:03.5]} 59... Kh6 {[%clk 0:00:06.8]} 60. Kf5 {[%clk 0:00:03.3]} 60...
f3 {[%clk 0:00:07.1]} 61. Rg6+ {[%clk 0:00:02.2]} 61... Kh7 {[%clk 0:00:07.1]}
62. Rxg5 {[%clk 0:00:01.3]} 62... f2 {[%clk 0:00:05.5]} 63. Rh5+ {[%clk
0:00:01.3]} 63... Kg7 {[%clk 0:00:06]} 64. Rh1 {[%clk 0:00:01.7]} 64... Ra2
{[%clk 0:00:04.8]} 65. Ke4 {[%clk 0:00:01.7]} 65... Re2+ {[%clk 0:00:03.6]} 66.
Kd3 {[%clk 0:00:01.9]} 66... Re1 {[%clk 0:00:04.5]} 67. Rh2 {[%clk 0:00:01.2]}
67... f1=Q+ {[%clk 0:00:04.6]} 0-1

[Event "*** Titled Tuesday Blitz"]
[Site "Chess.com"]
[Date "2021.04.27"]
[Round "5"]
[White "tapu2"]
[Black "laboratorio25"]
[Result "1/2-1/2"]
[WhiteElo "2714"]
[BlackElo "2541"]
[TimeControl "180+1"]
[EndTime "10:57:30 PDT"]
[Termination "Game drawn - insufficient material"]

1. e4 {[%clk 0:03:00.9]} 1... c5 {[%clk 0:02:59.1]} 2. Nc3 {[%clk 0:03:00.8]}
2... Nc6 {[%clk 0:02:58.4]} 3. Bb5 {[%clk 0:02:59.8]} 3... Nd4 {[%clk
0:02:57.2]} 4. Nf3 {[%clk 0:02:59.8]} 4... g6 {[%clk 0:02:55.3]} 5. Nxd4 {[%clk
0:02:59]} 5... cxd4 {[%clk 0:02:56.2]} 6. Ne2 {[%clk 0:02:59.2]} 6... Bg7 {[%clk
0:02:56.5]} 7. c3 {[%clk 0:02:59.2]} 7... a6 {[%clk 0:02:54.4]} 8. Bd3 {[%clk
0:02:58.7]} 8... dxc3 {[%clk 0:02:47.2]} 9. dxc3 {[%clk 0:02:59.6]} 9... d5
{[%clk 0:02:34.1]} 10. O-O {[%clk 0:02:52.9]} 10... Nf6 {[%clk 0:02:26.4]} 11.
e5 {[%clk 0:02:50.8]} 11... Nd7 {[%clk 0:02:25.7]} 12. f4 {[%clk 0:02:49]} 12...
O-O {[%clk 0:02:24.8]} 13. Be3 {[%clk 0:02:47.9]} 13... Qc7 {[%clk 0:02:18.7]}
14. Bc2 {[%clk 0:02:47.3]} 14... e6 {[%clk 0:02:10.3]} 15. Qd4 {[%clk
0:02:34.1]} 15... b5 {[%clk 0:02:06.8]} 16. a4 {[%clk 0:02:33.7]} 16... Bb7
{[%clk 0:02:01.8]} 17. axb5 {[%clk 0:02:30.6]} 17... axb5 {[%clk 0:02:01.5]} 18.
Bd3 {[%clk 0:02:31.3]} 18... Bc6 {[%clk 0:01:52.4]} 19. Qb4 {[%clk 0:02:20.1]}
19... Rfb8 {[%clk 0:01:35.6]} 20. Nd4 {[%clk 0:02:14.5]} 20... Bf8 {[%clk
0:01:31.1]} 21. Qb3 {[%clk 0:02:12.1]} 21... Rxa1 {[%clk 0:01:20.9]} 22. Rxa1
{[%clk 0:02:11.4]} 22... Nc5 {[%clk 0:01:14.2]} 23. Qc2 {[%clk 0:02:11.6]} 23...
Nxd3 {[%clk 0:01:08.3]} 24. Qxd3 {[%clk 0:02:11.6]} 24... b4 {[%clk 0:01:06.6]}
25. Rc1 {[%clk 0:01:54.2]} 25... Qb7 {[%clk 0:00:33]} 26. cxb4 {[%clk
0:01:28.9]} 26... Bd7 {[%clk 0:00:32.4]} 27. Bd2 {[%clk 0:01:16.5]} 27... Bxb4
{[%clk 0:00:31]} 28. Bxb4 {[%clk 0:01:12]} 28... Qxb4 {[%clk 0:00:31.9]} 29. b3
{[%clk 0:01:12.4]} 29... Kg7 {[%clk 0:00:25.6]} 30. Qc3 {[%clk 0:01:11.7]} 30...
Qxc3 {[%clk 0:00:23.6]} 31. Rxc3 {[%clk 0:01:11.4]} 31... Rb4 {[%clk 0:00:24.3]}
32. Rd3 {[%clk 0:01:10.9]} 32... Bb5 {[%clk 0:00:24.1]} 33. Rd2 {[%clk
0:01:11.3]} 33... Ba6 {[%clk 0:00:23.3]} 34. Kf2 {[%clk 0:01:11.7]} 34... Rb8
{[%clk 0:00:22]} 35. Ke3 {[%clk 0:01:12.1]} 35... Rc8 {[%clk 0:00:22.4]} 36. Rc2
{[%clk 0:01:10.3]} 36... Rb8 {[%clk 0:00:22.4]} 37. Rc6 {[%clk 0:01:08.8]} 37...
Bf1 {[%clk 0:00:21]} 38. Kf2 {[%clk 0:01:08.7]} 38... Bd3 {[%clk 0:00:20.9]} 39.
Ke3 {[%clk 0:01:09.1]} 39... Be4 {[%clk 0:00:21.4]} 40. g4 {[%clk 0:01:08.9]}
40... h6 {[%clk 0:00:21.2]} 41. Rc7 {[%clk 0:01:08.6]} 41... Kf8 {[%clk
0:00:21.1]} 42. h4 {[%clk 0:01:08.6]} 42... g5 {[%clk 0:00:20.9]} 43. hxg5
{[%clk 0:01:03.6]} 43... hxg5 {[%clk 0:00:21.5]} 44. f5 {[%clk 0:01:01.1]} 44...
exf5 {[%clk 0:00:16.9]} 45. gxf5 {[%clk 0:01:02]} 45... Re8 {[%clk 0:00:16.9]}
46. e6 {[%clk 0:00:58]} 46... fxe6 {[%clk 0:00:17.2]} 47. fxe6 {[%clk
0:00:57.8]} 47... Re7 {[%clk 0:00:16.3]} 48. Rc8+ {[%clk 0:00:53.5]} 48... Kg7
{[%clk 0:00:16.3]} 49. b4 {[%clk 0:00:48.9]} 49... Kf6 {[%clk 0:00:16.6]} 50.
Rf8+ {[%clk 0:00:47]} 50... Kg7 {[%clk 0:00:15.1]} 51. Rf2 {[%clk 0:00:43.4]}
51... Ra7 {[%clk 0:00:14.8]} 52. Nc6 {[%clk 0:00:38.9]} 52... Rc7 {[%clk
0:00:08.4]} 53. Ne5 {[%clk 0:00:35.8]} 53... Re7 {[%clk 0:00:03.3]} 54. Rf7+
{[%clk 0:00:32.4]} 54... Rxf7 {[%clk 0:00:03.8]} 55. exf7 {[%clk 0:00:32.8]}
55... Bf5 {[%clk 0:00:04.1]} 56. Kd4 {[%clk 0:00:18.5]} 56... g4 {[%clk
0:00:04.2]} 57. b5 {[%clk 0:00:16.7]} 57... g3 {[%clk 0:00:04.1]} 58. Ke3 {[%clk
0:00:15.9]} 58... d4+ {[%clk 0:00:02]} 59. Kf3 {[%clk 0:00:15.7]} 59... d3
{[%clk 0:00:01]} 60. Nc4 {[%clk 0:00:13.6]} 60... d2 {[%clk 0:00:01.4]} 61. Nxd2
{[%clk 0:00:13.2]} 61... Kxf7 {[%clk 0:00:02.2]} 62. Kxg3 {[%clk 0:00:13.3]}
62... Bd3 {[%clk 0:00:02.9]} 63. Kf4 {[%clk 0:00:14.2]} 63... Bxb5 {[%clk
0:00:02.8]} 1/2-1/2

[Event "*** Titled Tuesday Blitz"]
[Site "Chess.com"]
[Date "2021.04.27"]
[Round "5"]
[White "lamomiablanca"]
[Black "dragos420"]
[Result "1-0"]
[WhiteElo "2408"]
[BlackElo "2548"]
[TimeControl "180+1"]
[EndTime "10:57:30 PDT"]
[Termination "lamomiablanca won by resignation"]

1. e4 {[%clk 0:03:00.9]} 1... e5 {[%clk 0:03:00.1]} 2. Nf3 {[%clk 0:02:59.8]}
2... Nc6 {[%clk 0:03:00.9]} 3. Nc3 {[%clk 0:02:59.1]} 3... Nf6 {[%clk
0:03:00.8]} 4. d4 {[%clk 0:02:58]} 4... exd4 {[%clk 0:03:01.7]} 5. Nxd4 {[%clk
0:02:58.4]} 5... Bb4 {[%clk 0:03:02.6]} 6. Nxc6 {[%clk 0:02:58.1]} 6... bxc6
{[%clk 0:03:03.5]} 7. Bd3 {[%clk 0:02:58]} 7... O-O {[%clk 0:03:02.5]} 8. O-O
{[%clk 0:02:55.9]} 8... d5 {[%clk 0:03:03]} 9. exd5 {[%clk 0:02:49.3]} 9... cxd5
{[%clk 0:03:03.9]} 10. h3 {[%clk 0:02:49.5]} 10... h6 {[%clk 0:03:02.4]} 11. Qf3
{[%clk 0:02:48.8]} 11... c6 {[%clk 0:03:02.3]} 12. Bf4 {[%clk 0:02:43.7]} 12...
Bd6 {[%clk 0:02:58.7]} 13. Rfe1 {[%clk 0:02:41.8]} 13... Rb8 {[%clk 0:02:58.3]}
14. b3 {[%clk 0:02:40.3]} 14... Qc7 {[%clk 0:02:51.2]} 15. Bxh6 {[%clk
0:02:36.5]} 15... Rb4 {[%clk 0:02:25.4]} 16. Bd2 {[%clk 0:02:31]} 16... Bf4
{[%clk 0:02:21.6]} 17. Nb5 {[%clk 0:01:49.6]} 17... Bh2+ {[%clk 0:01:32.8]} 18.
Kh1 {[%clk 0:01:48]} 18... Rxb5 {[%clk 0:01:33.7]} 19. Bxb5 {[%clk 0:01:47]}
19... cxb5 {[%clk 0:01:34.3]} 20. g3 {[%clk 0:01:46.1]} 20... Qxc2 {[%clk
0:01:20.7]} 21. Bb4 {[%clk 0:01:22.6]} 21... Qh7 {[%clk 0:00:31.4]} 22. Bxf8
{[%clk 0:01:09.6]} 22... Bxh3 {[%clk 0:00:31]} 23. Be7 {[%clk 0:00:13.8]} 23...
Bg4 {[%clk 0:00:20.3]} 24. Qg2 {[%clk 0:00:13.7]} 24... Bxg3+ {[%clk 0:00:10.3]}
25. Kg1 {[%clk 0:00:13.6]} 25... Ne4 {[%clk 0:00:07.5]} 26. Rxe4 {[%clk
0:00:13.2]} 26... Bf3 {[%clk 0:00:05.8]} 27. Qxf3 {[%clk 0:00:12.1]} 27... Qh2+
{[%clk 0:00:06.1]} 28. Kf1 {[%clk 0:00:12.1]} 28... dxe4 {[%clk 0:00:07]} 29.
Qxg3 {[%clk 0:00:12.1]} 29... Qh1+ {[%clk 0:00:07.4]} 30. Qg1 {[%clk 0:00:11.5]}
30... Qf3 {[%clk 0:00:08.3]} 31. Re1 {[%clk 0:00:10.8]} 31... Qd3+ {[%clk
0:00:08]} 32. Kg2 {[%clk 0:00:10.5]} 32... Qf3+ {[%clk 0:00:07.9]} 33. Kh2
{[%clk 0:00:09.9]} 33... Qh5+ {[%clk 0:00:07.8]} 34. Kg2 {[%clk 0:00:10.1]}
34... Qf3+ {[%clk 0:00:07.9]} 35. Kf1 {[%clk 0:00:10.3]} 35... Qd3+ {[%clk
0:00:07.9]} 36. Re2 {[%clk 0:00:10.4]} 36... Qd1+ {[%clk 0:00:08.1]} 37. Kg2
{[%clk 0:00:10.5]} 37... Qxe2 {[%clk 0:00:08.6]} 38. Qc1 {[%clk 0:00:08.4]}
38... Qf3+ {[%clk 0:00:07.1]} 39. Kg1 {[%clk 0:00:07.4]} 39... Qg4+ {[%clk
0:00:07.3]} 40. Kf1 {[%clk 0:00:07.6]} 40... Qh3+ {[%clk 0:00:07.1]} 41. Ke1
{[%clk 0:00:07.5]} 41... Kh7 {[%clk 0:00:05.1]} 42. Bc5 {[%clk 0:00:07]} 42...
Qh1+ {[%clk 0:00:04.3]} 43. Kd2 {[%clk 0:00:07]} 43... Qf3 {[%clk 0:00:05.2]}
44. Be3 {[%clk 0:00:06.9]} 44... Qf5 {[%clk 0:00:05.4]} 45. Qc5 {[%clk
0:00:06.2]} 45... Qd7+ {[%clk 0:00:05.2]} 46. Qd4 {[%clk 0:00:06.1]} 46... Qc6
{[%clk 0:00:04.6]} 47. a4 {[%clk 0:00:04.8]} 47... bxa4 {[%clk 0:00:04.9]} 48.
bxa4 {[%clk 0:00:05.7]} 48... a5 {[%clk 0:00:04.6]} 49. Kd1 {[%clk 0:00:05]}
49... Qe8 {[%clk 0:00:03.8]} 50. Ke2 {[%clk 0:00:04.5]} 50... g6 {[%clk
0:00:03.7]} 51. Qc5 {[%clk 0:00:04.4]} 51... Qxa4 {[%clk 0:00:02.9]} 52. Qd4
{[%clk 0:00:03.9]} 52... Qc2+ {[%clk 0:00:02.9]} 53. Bd2 {[%clk 0:00:04.2]}
53... Qb1 {[%clk 0:00:03.2]} 54. Qd7 {[%clk 0:00:04.6]} 54... Qd3+ {[%clk
0:00:03.1]} 55. Qxd3 {[%clk 0:00:04.9]} 55... exd3+ {[%clk 0:00:04]} 56. Kxd3
{[%clk 0:00:05.8]} 56... g5 {[%clk 0:00:04.8]} 57. Bxg5 {[%clk 0:00:05.7]} 57...
Kg6 {[%clk 0:00:05.7]} 58. Be3 {[%clk 0:00:06]} 58... Kf5 {[%clk 0:00:06.6]} 59.
Bd2 {[%clk 0:00:05.4]} 59... Kg4 {[%clk 0:00:07.5]} 60. Bxa5 {[%clk 0:00:05.8]}
60... Kf3 {[%clk 0:00:08.4]} 61. Bb6 {[%clk 0:00:06.5]} 61... f5 {[%clk
0:00:09.1]} 62. Kd2 {[%clk 0:00:06.3]} 62... Ke4 {[%clk 0:00:09.1]} 63. Ke2
{[%clk 0:00:06.5]} 63... f4 {[%clk 0:00:09.3]} 64. f3+ {[%clk 0:00:07]} 64...
Ke5 {[%clk 0:00:08.9]} 65. Kd3 {[%clk 0:00:07.4]} 65... Kf5 {[%clk 0:00:09.8]}
66. Kd4 {[%clk 0:00:07.8]} 66... Kg5 {[%clk 0:00:10.3]} 67. Ke4 {[%clk
0:00:08.5]} 1-0

[Event "*** Titled Tuesday Blitz"]
[Site "Chess.com"]
[Date "2021.04.27"]
[Round "5"]
[White "Taktikmonster"]
[Black "Bad_left_hook"]
[Result "1/2-1/2"]
[WhiteElo "2417"]
[BlackElo "2569"]
[TimeControl "180+1"]
[EndTime "10:57:33 PDT"]
[Termination "Game drawn - insufficient material"]

1. e4 {[%clk 0:02:47.2]} 1... c5 {[%clk 0:02:59.1]} 2. Nf3 {[%clk 0:02:46.8]}
2... d6 {[%clk 0:02:59.4]} 3. d4 {[%clk 0:02:47.3]} 3... cxd4 {[%clk 0:02:59.9]}
4. Nxd4 {[%clk 0:02:48.2]} 4... Nf6 {[%clk 0:03:00.4]} 5. Nc3 {[%clk 0:02:48.3]}
5... a6 {[%clk 0:03:00.7]} 6. Be2 {[%clk 0:02:47.2]} 6... Nbd7 {[%clk
0:02:58.5]} 7. Be3 {[%clk 0:02:43.3]} 7... e6 {[%clk 0:02:57.2]} 8. g4 {[%clk
0:02:41.1]} 8... h6 {[%clk 0:02:50]} 9. f4 {[%clk 0:02:39.9]} 9... g5 {[%clk
0:02:12.2]} 10. f5 {[%clk 0:02:30.8]} 10... e5 {[%clk 0:02:06.1]} 11. Nb3 {[%clk
0:02:26.1]} 11... b5 {[%clk 0:02:01.3]} 12. a3 {[%clk 0:01:44.8]} 12... Bb7
{[%clk 0:01:58.9]} 13. Bf3 {[%clk 0:01:38.5]} 13... Rc8 {[%clk 0:01:46.3]} 14.
Qd3 {[%clk 0:01:23.5]} 14... Nc5 {[%clk 0:01:28.3]} 15. Nxc5 {[%clk 0:01:22.3]}
15... dxc5 {[%clk 0:01:28.3]} 16. O-O-O {[%clk 0:00:43.7]} 16... Qxd3 {[%clk
0:01:23.7]} 17. Rxd3 {[%clk 0:00:44.6]} 17... b4 {[%clk 0:00:47.7]} 18. axb4
{[%clk 0:00:45.5]} 18... cxb4 {[%clk 0:00:47.1]} 19. Nd5 {[%clk 0:00:45.7]}
19... Bxd5 {[%clk 0:00:46.8]} 20. exd5 {[%clk 0:00:46.6]} 20... e4 {[%clk
0:00:47]} 21. Bxe4 {[%clk 0:00:30.8]} 21... Nxe4 {[%clk 0:00:45.1]} 22. Bd4
{[%clk 0:00:25.1]} 22... Kd7 {[%clk 0:00:20.4]} 23. Bxh8 {[%clk 0:00:21.3]}
23... Nf2 {[%clk 0:00:20.5]} 24. Rhd1 {[%clk 0:00:19.8]} 24... Nxd1 {[%clk
0:00:18.4]} 25. Kxd1 {[%clk 0:00:20.7]} 25... Bd6 {[%clk 0:00:18.2]} 26. Bg7
{[%clk 0:00:16.1]} 26... Bxh2 {[%clk 0:00:18.2]} 27. Rh3 {[%clk 0:00:14.9]}
27... Bf4 {[%clk 0:00:16.3]} 28. Rxh6 {[%clk 0:00:13.7]} 28... Rc5 {[%clk
0:00:16.8]} 29. Rxa6 {[%clk 0:00:05.9]} 29... Rxd5+ {[%clk 0:00:16.9]} 30. Ke1
{[%clk 0:00:06.5]} 30... Rd2 {[%clk 0:00:17.1]} 31. Ra7+ {[%clk 0:00:04.7]}
31... Kc8 {[%clk 0:00:13.7]} 32. Rxf7 {[%clk 0:00:04.4]} 32... Rxc2 {[%clk
0:00:14.2]} 33. Bd4 {[%clk 0:00:01.7]} 33... Rg2 {[%clk 0:00:13.4]} 34. Bf6
{[%clk 0:00:02.1]} 34... Rxg4 {[%clk 0:00:12.8]} 35. Rg7 {[%clk 0:00:02.5]}
35... Rg2 {[%clk 0:00:12.6]} 36. Bd4 {[%clk 0:00:02]} 36... g4 {[%clk
0:00:12.3]} 37. f6 {[%clk 0:00:02.3]} 37... Bh6 {[%clk 0:00:07.5]} 38. Rg8+
{[%clk 0:00:01.7]} 38... Kd7 {[%clk 0:00:07.2]} 39. f7 {[%clk 0:00:02.6]} 39...
Ke6 {[%clk 0:00:07.6]} 40. f8=Q {[%clk 0:00:02.6]} 40... Bxf8 {[%clk 0:00:07.8]}
41. Rxf8 {[%clk 0:00:03.5]} 41... Kd5 {[%clk 0:00:08.7]} 42. Bh8 {[%clk
0:00:03.1]} 42... Rc2 {[%clk 0:00:08]} 43. Rg8 {[%clk 0:00:02.9]} 43... Rc4
{[%clk 0:00:07.2]} 44. Kf2 {[%clk 0:00:02.9]} 44... Rf4+ {[%clk 0:00:06.5]} 45.
Kg3 {[%clk 0:00:03]} 45... Rf3+ {[%clk 0:00:06.3]} 46. Kxg4 {[%clk 0:00:03.4]}
46... Rf2 {[%clk 0:00:06.9]} 47. Rb8 {[%clk 0:00:03.3]} 47... Kc4 {[%clk
0:00:05.9]} 48. Rc8+ {[%clk 0:00:03]} 48... Kb3 {[%clk 0:00:06.2]} 49. Kg3
{[%clk 0:00:03.9]} 49... Rf7 {[%clk 0:00:05.9]} 50. Be5 {[%clk 0:00:03.7]} 50...
Ka2 {[%clk 0:00:06.2]} 51. Rb8 {[%clk 0:00:03.8]} 51... b3 {[%clk 0:00:06.6]}
52. Kg4 {[%clk 0:00:03.6]} 52... Kb1 {[%clk 0:00:06.4]} 53. Kg5 {[%clk
0:00:03.9]} 53... Kc2 {[%clk 0:00:06.4]} 54. Bf6 {[%clk 0:00:04.3]} 54... Rd7
{[%clk 0:00:06.5]} 55. Kf5 {[%clk 0:00:04.6]} 55... Rd1 {[%clk 0:00:06]} 56.
Rc8+ {[%clk 0:00:05]} 56... Kb1 {[%clk 0:00:06]} 57. Be5 {[%clk 0:00:05.4]}
57... Rd2 {[%clk 0:00:06.2]} 58. Ke4 {[%clk 0:00:05.6]} 58... Rc2 {[%clk
0:00:06.6]} 59. Rb8 {[%clk 0:00:02.6]} 59... Rd2 {[%clk 0:00:06.4]} 60. Rxb3
{[%clk 0:00:01.2]} 60... Re2+ {[%clk 0:00:06.9]} 61. Re3 {[%clk 0:00:01.4]}
61... Rc2 {[%clk 0:00:06.7]} 62. b4 {[%clk 0:00:01.5]} 62... Rc4+ {[%clk
0:00:06.9]} 63. Bd4 {[%clk 0:00:01.7]} 63... Rxb4 {[%clk 0:00:07.8]} 64. Rc3
{[%clk 0:00:01.5]} 64... Ka2 {[%clk 0:00:07.2]} 65. Kd3 {[%clk 0:00:02.4]} 65...
Rb3 {[%clk 0:00:07.6]} 66. Rxb3 {[%clk 0:00:02.5]} 66... Kxb3 {[%clk 0:00:08.5]}
1/2-1/2